[Event "GEO-ch 1st League 2021"]
[Site "Tbilisi"]
[Date "2021.03.29"]
[Round "1.9"]
[White "Morchiashvili, Bachana"]
[Black "Shapovalovi, Vasiko"]
[Result "1-0"]
[ECO "E18"]
[WhiteElo "2313"]
[BlackElo "1741"]
[Annotator "RC"]
[PlyCount "105"]
[EventDate "2021.03.29"]
[EventType "swiss"]
[EventCountry "GEO"]
[SourceTitle "playchess.com"]
[Source "ChessBase"]
[SourceQuality "1"]
[TimeControl "5400+30"]

1. d4 {[%emt 0:00:00]} e6 {[%emt 0:00:00]} 2. Nf3 {[%emt 0:00:20]} Nf6 {[%emt 0:00:31]} 3. c4 {[%emt 0:00:19]} b6 {[%emt 0:00:05]} 4. g3 {[%emt 0:02:23]} Bb7 {[%emt 0:00:26]} 5. Bg2 {[%emt 0:00:09]} Be7 {[%emt 0:00:30]} 6. O-O {[%emt 0:00:08]} O-O {[%emt 0:00:07]} 7. Nc3 {[%emt 0:01:01]} Ne4 {[%emt 0:01:22]} 8. Bd2 {[%emt 0:01:24]} d6 {[%emt 0:06:04]} 9. d5 {[%emt 0:01:51]} Nxd2 {[%emt 0:08:17]} 10. Nxd2 {[%emt 0:13:38]} e5 {[%emt 0:00:11]} 11. f4 {[%emt 0:01:21]} Nd7 {[%emt 0:02:46]} 12. Nf3 {[%emt 0:07:04]} Bf6 {[%emt 0:03:22]} 13. Qd2 {[%emt 0:10:45]} Re8 {[%emt 0:03:22]} 14. Rae1 {[%emt 0:12:09]} e4 {[%emt 0:13:39]} 15. Nd4 {[%emt 0:00:09]} e3 {[%emt 0:16:02]} 16. Qd1 {[%emt 0:00:22]} Bxd4 {[%emt 0:05:51]} 17. Qxd4 {[%emt 0:00:06]} Qf6 {[%emt 0:00:02]} 18. Rd1 {[%emt 0:09:50]} Ba6 {[%emt 0:03:22]} 19. Bh3 {[%emt 0:06:34]} Qxd4 {[%emt 0:04:41]} 20. Rxd4 {[%emt 0:00:06]} Nf6 {[%emt 0:00:02]} 21. Rf3 {[%emt 0:17:51]} Re7 {[%emt 0:01:04]} 22. b3 {[%emt 0:01:38]} Rae8 {[%emt 0:01:45]} 23. Bf5 {[%emt 0:04:47]} g6 {[%emt 0:02:54]} 24. Bc2 {[%emt 0:00:04]} Bc8 {[%emt 0:01:21]} 25. Kg2 {[%emt 0:00:35]} Ng4 {[%emt 0:10:15]} 26. Nd1 {[%emt 0:03:02]} Nh6 {[%emt 0:00:11]} 27. h3 {[%emt 0:01:20]} Bf5 {[%emt 0:03:49]} 28. Bd3 {[%emt 0:00:43]} Bd7 {[%emt 0:02:38]} 29. Nc3 {[%emt 0:00:25]} Nf5 {[%emt 0:02:03]} 30. Bxf5 {[%emt 0:00:10]} Bxf5 {[%emt 0:00:03]} 31. Rf1 {[%emt 0:01:51]} h5 {[%emt 0:00:43]} 32. Rh1 {[%emt 0:00:17]} Kg7 {[%emt 0:02:51]} 33. Kf3 {[%emt 0:00:31]} Rh8 {[%emt 0:00:24]} 34. Rdd1 {[%emt 0:00:28]} a6 {[%emt 0:00:59]} 35. g4 {[%emt 0:01:16]} Bc2 {[%emt 0:00:31]} 36. Rc1 {[%emt 0:00:38]} hxg4+ {[%emt 0:01:26]} 37. hxg4 {[%emt 0:00:05]} Rxh1 {[%emt 0:00:16]} 38. Rxh1 {[%emt 0:00:01]} f5 {[%emt 0:00:07]} 39. g5 {[%emt 0:01:27]} Kf8 {[%emt 0:03:51]} 40. Rh8+ {[%emt 0:01:31]} Kg7 {[%emt 0:00:08]} 41. Ra8 {[%emt 0:01:10]} a5 {[%emt 0:00:09]} 42. Rc8 {[%emt 0:00:06]} Kf7 {[%emt 0:00:45]} 43. Rh8 {[%emt 0:01:01]} Kg7 {[%emt 0:00:35]} 44. Rb8 {[%emt 0:00:08]} Kf7 {[%emt 0:00:29]} 45. Kg3 {[%emt 0:00:24]} Kg7 {[%emt 0:01:14]} 46. Rc8 {[%emt 0:00:12]} Kf7 {[%emt 0:00:19]} 47. Rh8 {[%emt 0:00:16]} Be4 {[%emt 0:00:29]} 48. Rh7+ {[%emt 0:00:28]} Ke8 {[%emt 0:00:05]} 49. Rxe7+ {[%emt 0:00:26]} Kxe7 {[%emt 0:00:04]} 50. Nxe4 {[%emt 0:00:06]} fxe4 {[%emt 0:00:03]} 51. Kg4 {[%emt 0:00:29]} Kf7 {[%emt 0:00:42]} 52. f5 {[%emt 0:00:08]} Kg7 {[%emt 0:00:27]} 53. f6+ {[%emt 0:00:20]} 1-0

[Event "GEO-ch 1st League 2021"]
[Site "Tbilisi"]
[Date "2021.03.30"]
[Round "2.2"]
[White "Azaladze, Shota"]
[Black "Donghvani, Nia"]
[Result "1-0"]
[ECO "A02"]
[WhiteElo "2439"]
[BlackElo "1985"]
[Annotator "ChessBase"]
[PlyCount "106"]
[EventDate "2021.03.29"]
[EventType "swiss"]
[EventCountry "GEO"]
[SourceTitle "playchess.com"]
[Source "ChessBase"]
[SourceQuality "1"]
[TimeControl "5400+30"]

1. b3 {[%emt 0:00:00]} c5 {[%emt 0:00:09]} 2. Bb2 {[%emt 0:00:00]} Nc6 {[%emt 0:00:06]} 3. f4 {[%emt 0:00:00]} d5 {[%emt 0:01:04]} 4. Nf3 {[%emt 0:00:00]} d4 {[%emt 0:02:29]} 5. g3 {[%emt 0:01:48]} Nf6 {[%emt 0:09:07]} 6. Bg2 {[%emt 0:04:32]} g6 {[%emt 0:00:02]} 7. O-O {[%emt 0:01:27]} Bg7 {[%emt 0:00:04]} 8. Na3 {[%emt 0:00:38]} O-O {[%emt 0:04:32]} 9. Nc4 {[%emt 0:06:51]} Rb8 {[%emt 0:03:06]} 10. e3 {[%emt 0:01:18]} Bf5 {[%emt 0:05:19]} 11. Re1 {[%emt 0:11:01]} d3 {[%emt 0:10:41]} 12. cxd3 {[%emt 0:04:03]} Bxd3 {[%emt 0:00:06]} 13. Nfe5 {[%emt 0:01:51]} Nb4 {[%emt 0:04:25]} 14. a3 {[%emt 0:05:06]} Na6 {[%emt 0:19:02]} 15. Nxd3 {[%emt 0:02:01]} Qxd3 {[%emt 0:00:02]} 16. Be5 {[%emt 0:02:51]} Nd7 {[%emt 0:10:52]} 17. Bxb8 {[%emt 0:01:51]} Bxa1 {[%emt 0:01:39]} 18. Bxa7 {[%emt 0:00:28]} b5 {[%emt 0:07:18]} 19. Bf1 {[%emt 0:02:32]} Qe4 {[%emt 0:02:08]} 20. Na5 {[%emt 0:02:53]} Bf6 {[%emt 0:04:13]} 21. Bxb5 {[%emt 0:00:36]} Qa8 {[%emt 0:01:22]} 22. Bxd7 {[%emt 0:01:04]} Qxa7 {[%emt 0:00:04]} 23. Bg4 {[%emt 0:00:50]} Nc7 {[%emt 0:00:57]} 24. Nc4 {[%emt 0:00:31]} Rd8 {[%emt 0:00:04]} 25. Bf3 {[%emt 0:01:39]} h5 {[%emt 0:01:00]} 26. Qc2 {[%emt 0:00:13]} Kg7 {[%emt 0:00:40]} 27. Rc1 {[%emt 0:00:56]} e6 {[%emt 0:04:24]} 28. Kf2 {[%emt 0:06:23]} Nd5 {[%emt 0:01:37]} 29. Ke2 {[%emt 0:01:35]} Qa6 {[%emt 0:01:08]} 30. Ke1 {[%emt 0:00:47]} Nb6 {[%emt 0:02:22]} 31. Nxb6 {[%emt 0:02:32]} Qxb6 {[%emt 0:00:02]} 32. Qc4 {[%emt 0:01:03]} Bb2 {[%emt 0:02:55]} 33. Qxc5 {[%emt 0:03:49]} Qxb3 {[%emt 0:00:40]} 34. Rb1 {[%emt 0:00:28]} Qxa3 {[%emt 0:01:24]} 35. Qxa3 {[%emt 0:03:42]} Bxa3 {[%emt 0:00:01]} 36. Ke2 {[%emt 0:00:12]} Rc8 {[%emt 0:01:23]} 37. Rb7 {[%emt 0:00:19]} Rc2 {[%emt 0:00:36]} 38. Rb3 {[%emt 0:02:00]} Ra2 {[%emt 0:00:42]} 39. Be4 {[%emt 0:00:24]} Be7 {[%emt 0:01:03]} 40. Bb1 {[%emt 0:00:15]} Ra7 {[%emt 0:00:16]} 41. d4 {[%emt 0:00:32]} Ra3 {[%emt 0:00:39]} 42. Rb7 {[%emt 0:00:10]} Bf8 {[%emt 0:00:37]} 43. h3 {[%emt 0:00:44]} Ra4 {[%emt 0:00:06]} 44. Be4 {[%emt 0:01:02]} Rb4 {[%emt 0:00:30]} 45. Rc7 {[%emt 0:00:10]} Rb2+ {[%emt 0:00:22]} 46. Kf3 {[%emt 0:00:45]} Rd2 {[%emt 0:00:42]} 47. Rb7 {[%emt 0:00:29]} Ra2 {[%emt 0:00:52]} 48. Bc6 {[%emt 0:00:17]} Kf6 {[%emt 0:00:28]} 49. Be8 {[%emt 0:00:11]} Be7 {[%emt 0:00:25]} 50. g4 {[%emt 0:00:08]} hxg4+ 51. hxg4 {[%emt 0:00:03]} e5 {[%emt 0:00:28]} 52. dxe5+ {[%emt 0:00:45]} Ke6 {[%emt 0:00:04]} 53. Rb6+ {[%emt 0:00:29]} Kd5 {[%emt 0:02:13]} 1-0

[Event "GEO-ch 1st League 2021"]
[Site "Tbilisi"]
[Date "2021.03.30"]
[Round "2.3"]
[White "Lomaia, Diana"]
[Black "Arabidze, Meri"]
[Result "0-1"]
[ECO "E03"]
[WhiteElo "1946"]
[BlackElo "2437"]
[Annotator "NA"]
[PlyCount "88"]
[EventDate "2021.03.29"]
[EventType "swiss"]
[EventCountry "GEO"]
[SourceTitle "playchess.com"]
[Source "ChessBase"]
[SourceQuality "1"]
[TimeControl "5400+30"]

1. d4 {[%emt 0:00:00]} Nf6 {[%emt 0:00:00]} 2. c4 {[%emt 0:00:00]} e6 {[%emt 0:00:00]} 3. g3 {[%emt 0:00:32]} d5 {[%emt 0:00:00]} 4. Nf3 {[%emt 0:00:18]} dxc4 {[%emt 0:00:17]} 5. Qa4+ {[%emt 0:01:40]} Nbd7 {[%emt 0:01:26]} 6. Bg2 {[%emt 0:02:05]} a6 {[%emt 0:01:28]} 7. Qxc4 {[%emt 0:01:23]} b5 {[%emt 0:00:36]} 8. Qd3 {[%emt 0:10:30]} Bb7 {[%emt 0:00:31]} 9. O-O {[%emt 0:02:40]} c5 {[%emt 0:00:36]} 10. Nh4 {[%emt 0:16:05]} Bxg2 {[%emt 0:03:41]} 11. Nxg2 {[%emt 0:00:31]} cxd4 {[%emt 0:04:04]} 12. Qxd4 {[%emt 0:01:38]} Bc5 {[%emt 0:00:19]} 13. Qh4 {[%emt 0:00:33]} O-O {[%emt 0:00:56]} 14. Be3 {[%emt 0:00:41]} Be7 {[%emt 0:03:59]} 15. Bd4 {[%emt 0:12:56]} Rc8 {[%emt 0:04:50]} 16. Nc3 {[%emt 0:03:57] [#]} (16. Ne3 $17 {was worth a try.}) 16... Rc4 $19 {[%emt 0:04:47]} 17. Ne3 {[%emt 0:21:18]} Nd5 {[%emt 0:02:37]} 18. Qg4 {[%emt 0:00:58]} N7f6 {[%emt 0:01:24]} 19. Qh4 {[%emt 0:01:50]} Nxe3 {[%emt 0:01:55]} 20. fxe3 {[%emt 0:00:23]} e5 {[%emt 0:00:24]} 21. b3 {[%emt 0:01:03]} exd4 {[%emt 0:01:29]} 22. bxc4 {[%emt 0:00:18]} dxc3 {[%emt 0:00:06]} 23. cxb5 {[%emt 0:01:18]} axb5 {[%emt 0:00:20]} 24. Rac1 {[%emt 0:04:02]} b4 {[%emt 0:03:21]} 25. Qd4 {[%emt 0:06:58]} Qxd4 {[%emt 0:03:23]} 26. exd4 {[%emt 0:00:06]} Ra8 {[%emt 0:00:07]} 27. Rc2 {[%emt 0:00:44]} Nd5 {[%emt 0:00:13]} 28. Rf3 {[%emt 0:01:23]} f5 {[%emt 0:00:28]} 29. Kf2 {[%emt 0:00:52]} g6 {[%emt 0:00:59]} 30. Rd3 {[%emt 0:02:19]} Bg5 {[%emt 0:01:31]} 31. h4 {[%emt 0:01:05]} Bd2 {[%emt 0:00:40]} 32. Kf3 {[%emt 0:01:31]} Re8 {[%emt 0:00:23]} 33. Rcxd2 {[%emt 0:00:21]} cxd2 {[%emt 0:00:21]} 34. Rxd2 {[%emt 0:00:02]} Re3+ {[%emt 0:00:27]} 35. Kf2 {[%emt 0:00:18]} Ra3 {[%emt 0:00:10]} 36. Rb2 {[%emt 0:00:08]} Kf7 {[%emt 0:00:28]} 37. Kg2 {[%emt 0:01:05]} Ke6 {[%emt 0:00:25]} 38. Kf2 {[%emt 0:00:59]} Kd6 {[%emt 0:00:25]} 39. e3 {[%emt 0:01:20]} Kc6 {[%emt 0:00:48]} 40. Rc2+ {[%emt 0:00:51]} Nc3 {[%emt 0:00:13]} 41. Kf3 {[%emt 0:00:05]} Rxa2 {[%emt 0:00:14]} 42. Rc1 {[%emt 0:00:03]} Kd5 {[%emt 0:00:25]} 43. g4 {[%emt 0:01:18]} Ne4 {[%emt 0:00:21]} 44. Kf4 {[%emt 0:00:11]} Rf2# {[%emt 1:00:53]} 0-1

[Event "GEO-ch 1st League 2021"]
[Site "Tbilisi"]
[Date "2021.03.30"]
[Round "2.4"]
[White "Bagaturov, Giorgi"]
[Black "Adamia, Jaba"]
[Result "1-0"]
[ECO "E18"]
[WhiteElo "2431"]
[BlackElo "1899"]
[Annotator "NA"]
[PlyCount "97"]
[EventDate "2021.03.29"]
[EventType "swiss"]
[EventCountry "GEO"]
[SourceTitle "playchess.com"]
[Source "ChessBase"]
[SourceQuality "1"]
[TimeControl "5400+30"]

1. d4 {[%emt 0:00:02]} Nf6 {[%emt 0:00:00]} 2. Nf3 {[%emt 0:00:28]} e6 {[%emt 0:00:00]} 3. c4 {[%emt 0:00:12]} b6 {[%emt 0:00:09]} 4. g3 {[%emt 0:01:15]} Bb7 {[%emt 0:00:49]} 5. Bg2 {[%emt 0:00:14]} Be7 {[%emt 0:02:42]} 6. O-O {[%emt 0:00:25]} O-O {[%emt 0:00:21]} 7. Re1 {[%emt 0:01:10]} d6 {[%emt 0:03:59]} 8. Nc3 {[%emt 0:07:51]} Ne4 {[%emt 0:13:53]} 9. Qc2 {[%emt 0:04:19]} (9. Ng5 $5 Bxg5 10. Bxg5 (10. Bxe4 Bxe4 11. Bxg5 Qxg5 $14 12. Nxe4 Qa5 $14) (10. Nxe4 Bxc1 11. Rxc1 Nd7 $14) 10... Qxg5 11. Nxe4 Bxe4 12. Bxe4 $14) 9... f5 {[%emt 0:00:20]} 10. d5 {[%emt 0:10:57]} Nxc3 {[%emt 0:05:47]} 11. Qxc3 {[%emt 0:01:18]} e5 {[%emt 0:00:12]} 12. e4 {[%emt 0:08:46]} Bc8 {[%emt 0:07:06]} 13. Be3 $11 {[%emt 0:05:46]} Qe8 {[%emt 0:21:45]} 14. exf5 {[%emt 0:22:17]} Bxf5 {[%emt 0:02:41]} 15. Ng5 {[%emt 0:09:22]} Bxg5 {[%emt 0:02:58]} 16. Bxg5 {[%emt 0:00:03]} Qg6 {[%emt 0:01:42]} 17. Be3 {[%emt 0:02:48]} Nd7 {[%emt 0:00:48]} 18. b4 {[%emt 0:03:59]} Nf6 {[%emt 0:05:33]} 19. c5 {[%emt 0:02:12]} Be4 {[%emt 0:09:26]} 20. Qc4 {[%emt 0:07:25]} Bxg2 {[%emt 0:09:31]} 21. Kxg2 {[%emt 0:00:04]} Qh5 {[%emt 0:00:17]} 22. f3 {[%emt 0:02:38]} e4 {[%emt 0:02:12]} 23. f4 {[%emt 0:06:27]} Qxd5 {[%emt 0:02:08]} 24. Qxd5+ {[%emt 0:00:36]} Nxd5 {[%emt 0:00:04]} 25. cxd6 {[%emt 0:00:30]} Nxb4 {[%emt 0:01:42]} 26. Re2 {[%emt 0:00:41]} cxd6 {[%emt 0:01:07]} 27. Bd2 {[%emt 0:00:09]} Nd3 {[%emt 0:03:58]} 28. Rxe4 {[%emt 0:00:09]} Rfe8 {[%emt 0:00:14]} 29. Kf3 {[%emt 0:00:53]} Nc5 {[%emt 0:01:14]} 30. Rd4 {[%emt 0:00:38]} Re6 {[%emt 0:00:48]} 31. f5 {[%emt 0:00:37]} Rf8 {[%emt 0:01:04]} 32. g4 {[%emt 0:00:59]} g6 {[%emt 0:00:47]} 33. Bf4 {[%emt 0:00:44]} gxf5 {[%emt 0:00:32]} 34. Bxd6 {[%emt 0:00:09]} fxg4+ {[%emt 0:00:33]} 35. Kg2 {[%emt 0:00:14]} Re2+ {[%emt 0:00:28]} 36. Kh1 {[%emt 0:00:45]} Rff2 {[%emt 0:00:33]} 37. Rxg4+ {[%emt 0:00:06]} Kf7 {[%emt 0:00:12]} 38. Rh4 {[%emt 0:01:18]} Ne4 {[%emt 0:00:52]} 39. Bg3 {[%emt 0:00:30]} Nxg3+ {[%emt 0:00:26]} 40. hxg3 {[%emt 0:00:04]} Kg6 {[%emt 0:00:35]} 41. a4 {[%emt 0:00:25]} h5 {[%emt 0:00:28]} 42. g4 {[%emt 0:00:40]} hxg4 {[%emt 0:00:31]} 43. Rxg4+ {[%emt 0:00:05]} Kf6 {[%emt 0:00:13]} 44. Rh4 {[%emt 0:01:05]} Ra2 {[%emt 0:00:42]} 45. Re1 {[%emt 0:00:41]} Kg5 {[%emt 0:00:28]} 46. Rh8 {[%emt 0:00:23]} Kf4 {[%emt 0:00:37]} 47. Rf8+ {[%emt 0:00:34]} Kg3 {[%emt 0:00:11]} 48. Rg1+ {[%emt 0:00:05]} Rg2 {[%emt 0:00:12]} 49. Rxg2+ {[%emt 0:00:05]} 1-0

[Event "GEO-ch 1st League 2021"]
[Site "Tbilisi"]
[Date "2021.03.30"]
[Round "2.5"]
[White "Mindiashvili, Tengiz"]
[Black "Tutisani, Noe"]
[Result "0-1"]
[ECO "B43"]
[WhiteElo "1923"]
[BlackElo "2427"]
[Annotator "NA"]
[PlyCount "104"]
[EventDate "2021.03.29"]
[EventType "swiss"]
[EventCountry "GEO"]
[SourceTitle "playchess.com"]
[Source "ChessBase"]
[SourceQuality "1"]
[TimeControl "5400+30"]

1. e4 {[%emt 0:00:00]} c5 {[%emt 0:00:00]} 2. Nf3 {[%emt 0:00:00]} e6 {[%emt 0:00:00]} 3. d4 {[%emt 0:00:00]} cxd4 {[%emt 0:00:00]} 4. Nxd4 {[%emt 0:00:03]} a6 {[%emt 0:00:00]} 5. Nc3 {[%emt 0:00:20]} b5 {[%emt 0:00:00]} 6. Bd3 {[%emt 0:00:35]} Qb6 {[%emt 0:00:05]} 7. Nb3 {[%emt 0:00:15]} Qc7 {[%emt 0:00:05]} 8. Qe2 {[%emt 0:02:47]} Bb7 {[%emt 0:01:36]} 9. O-O {[%emt 0:04:41]} b4 {[%emt 0:03:54]} 10. Nd1 {[%emt 0:04:10]} Nf6 {[%emt 0:00:11]} 11. e5 {[%emt 0:01:57]} Nd5 {[%emt 0:00:07]} 12. f4 {[%emt 0:01:49]} Nc6 {[%emt 0:03:12]} 13. Ne3 {[%emt 0:01:06]} Nb6 {[%emt 0:03:20]} 14. Nc4 {[%emt 0:03:22]} ({Better is} 14. Bd2 $14) 14... Nxc4 {[%emt 0:00:43]} 15. Bxc4 {[%emt 0:00:02]} Rc8 {[%emt 0:07:22]} 16. Bd3 {[%emt 0:00:20]} ({Don't go for} 16. Bxa6 $2 Qb6+ {[%mdl 64] Double Attack} 17. Be3 Bxa6 $19) 16... a5 {[%emt 0:04:26]} 17. Be3 {[%emt 0:00:08]} a4 {[%emt 0:00:03]} 18. Nd2 {[%emt 0:03:45]} Ne7 {[%emt 0:06:15]} 19. Ne4 {[%emt 0:03:23]} Nf5 {[%emt 0:04:39]} 20. Bf2 {[%emt 0:01:00]} Bxe4 {[%emt 0:00:08]} 21. Bxe4 {[%emt 0:00:11]} Bc5 {[%emt 0:00:02]} 22. Qd3 {[%emt 0:07:11]} g6 {[%emt 0:04:26]} 23. Rad1 {[%emt 0:01:51]} d5 $11 {[%emt 0:07:12]} 24. exd6 {[%emt 0:14:54]} Nxd6 {[%emt 0:00:34]} 25. Bf3 {[%emt 0:04:38]} O-O {[%emt 0:00:23]} 26. Bxc5 {[%emt 0:04:13]} Qxc5+ {[%emt 0:02:45]} 27. Qd4 {[%emt 0:01:07]} Nc4 {[%emt 0:06:12]} 28. Qxc5 {[%emt 0:02:51]} Rxc5 {[%emt 0:01:58]} 29. Rd4 {[%emt 0:01:56]} Rb8 {[%emt 0:01:29]} 30. c3 {[%emt 0:02:50]} b3 {[%emt 0:01:20]} 31. axb3 {[%emt 0:01:13]} Rxb3 {[%emt 0:00:05]} 32. f5 {[%emt 0:12:07]} gxf5 {[%emt 0:01:10]} 33. Rd8+ {[%emt 0:01:08]} Kg7 {[%emt 0:00:05]} 34. Ra8 {[%emt 0:00:02]} Nxb2 {[%emt 0:00:41]} 35. Ra7 {[%emt 0:00:39]} Rbxc3 {[%emt 0:00:06]} 36. g4 {[%emt 0:01:55]} f4 {[%emt 0:00:17]} 37. h4 {[%emt 0:00:17]} h6 {[%emt 0:00:45]} 38. h5 {[%emt 0:00:14]} a3 {[%emt 0:01:00]} 39. Be4 {[%emt 0:00:33]} Rg3+ {[%emt 0:00:11]} 40. Kh2 {[%emt 0:00:17]} Rxg4 {[%emt 0:02:11]} 41. Bg6 {[%emt 0:00:02]} Kf6 {[%emt 0:01:10]} 42. Rxf7+ {[%emt 0:00:23]} Kg5 {[%emt 0:00:02]} 43. Ra7 {[%emt 0:01:54]} Rc3 {[%emt 0:00:07]} 44. Rg1 {[%emt 0:02:57]} Rxg1 {[%emt 0:00:52]} 45. Kxg1 {[%emt 0:00:01]} Nc4 {[%emt 0:01:16]} 46. Kf2 {[%emt 0:01:25]} Ne5 {[%emt 0:00:21]} 47. Ra5 {[%emt 0:00:21]} Kf6 {[%emt 0:00:06]} 48. Be4 {[%emt 0:00:27]} Re3 {[%emt 0:00:09]} 49. Ra4 {[%emt 0:00:23]} Kg5 {[%emt 0:00:44]} 50. Bb1 {[%emt 0:00:40]} Ng4+ {[%emt 0:00:25]} 51. Kf1 {[%emt 0:00:19]} Rc3 {[%emt 0:00:13]} 52. Be4 {[%emt 0:00:21]} f3 {[%emt 0:00:05]} 0-1

[Event "GEO-ch 1st League 2021"]
[Site "Tbilisi"]
[Date "2021.03.30"]
[Round "2.6"]
[White "Esadze, Tamari"]
[Black "Lortkipanidze, Nodar"]
[Result "0-1"]
[ECO "B78"]
[WhiteElo "1889"]
[BlackElo "2416"]
[Annotator "ChessBase"]
[PlyCount "54"]
[EventDate "2021.03.29"]
[EventType "swiss"]
[EventCountry "GEO"]
[SourceTitle "playchess.com"]
[Source "ChessBase"]
[SourceQuality "1"]
[TimeControl "5400+30"]

1. e4 {[%emt 0:00:00]} c5 {[%emt 0:00:00]} 2. Nf3 {[%emt 0:00:00]} d6 {[%emt 0:00:00]} 3. d4 {[%emt 0:00:00]} cxd4 {[%emt 0:00:00]} 4. Nxd4 {[%emt 0:00:00]} Nf6 {[%emt 0:00:03]} 5. Nc3 {[%emt 0:00:00]} g6 {[%emt 0:00:26]} 6. Be3 {[%emt 0:00:00]} Bg7 {[%emt 0:00:07]} 7. f3 {[%emt 0:00:01]} Nc6 {[%emt 0:00:16]} 8. Qd2 {[%emt 0:00:12]} O-O {[%emt 0:00:07]} 9. Bc4 {[%emt 0:00:04]} Bd7 {[%emt 0:00:15]} 10. O-O-O {[%emt 0:00:15]} Rb8 {[%emt 0:00:25]} 11. h4 {[%emt 0:06:04]} b5 {[%emt 0:00:26]} 12. Nxc6 {[%emt 0:03:51]} Bxc6 {[%emt 0:00:11]} 13. Bd5 {[%emt 0:01:08]} b4 {[%emt 0:03:21]} 14. Ne2 {[%emt 0:03:25]} Bxd5 {[%emt 0:03:58]} 15. exd5 {[%emt 0:00:05]} Qa5 {[%emt 0:00:27]} 16. Kb1 {[%emt 0:00:47]} Rb5 {[%emt 0:01:32]} 17. Nf4 {[%emt 0:05:08]} Rc8 {[%emt 0:01:39]} 18. g4 {[%emt 0:12:32]} Rc3 {[%emt 0:05:11]} 19. Bd4 {[%emt 0:08:48]} Rxf3 {[%emt 0:01:42]} 20. Rhe1 {[%emt 0:03:00]} Rxf4 {[%emt 0:06:34]} 21. Qxf4 {[%emt 0:18:57]} Nxd5 {[%emt 0:00:08]} 22. Qe4 {[%emt 0:00:03]} Nc3+ {[%emt 0:01:11]} 23. Bxc3 {[%emt 0:00:39]} bxc3 {[%emt 0:00:05]} 24. Qa8+ {[%emt 0:00:18]} Bf8 {[%emt 0:00:05]} 25. Kc1 {[%emt 0:01:55]} Rxb2 {[%emt 0:00:21]} 26. Rd3 {[%emt 0:03:05]} Rxa2 {[%emt 0:01:35]} 27. Kd1 {[%emt 0:00:03]} Ra1+ {[%emt 0:00:12]} 0-1

[Event "GEO-ch 1st League 2021"]
[Site "Tbilisi"]
[Date "2021.03.30"]
[Round "2.7"]
[White "Akhvlediani, Irakli"]
[Black "Qalichava, Akaki"]
[Result "1-0"]
[ECO "E15"]
[WhiteElo "2355"]
[BlackElo "1877"]
[Annotator "NA"]
[PlyCount "107"]
[EventDate "2021.03.29"]
[EventType "swiss"]
[EventCountry "GEO"]
[SourceTitle "playchess.com"]
[Source "ChessBase"]
[SourceQuality "1"]
[TimeControl "5400+30"]

1. d4 {[%emt 0:00:21]} Nf6 {[%emt 0:00:00]} 2. c4 {[%emt 0:00:02]} e6 {[%emt 0:00:00]} 3. Nf3 {[%emt 0:00:02]} b6 {[%emt 0:00:00]} 4. g3 {[%emt 0:00:07]} Ba6 {[%emt 0:00:00]} 5. Nbd2 {[%emt 0:00:28]} Bb7 {[%emt 0:00:28]} 6. Bg2 {[%emt 0:00:05]} c5 {[%emt 0:00:06]} 7. e4 {[%emt 0:00:11]} cxd4 {[%emt 0:02:15]} 8. O-O {[%emt 0:00:54]} d6 {[%emt 0:01:34]} 9. Nxd4 {[%emt 0:00:05]} a6 {[%emt 0:01:53]} 10. Re1 {[%emt 0:00:06]} Qc7 {[%emt 0:00:37]} 11. a4 {[%emt 0:00:12]} Nbd7 {[%emt 0:02:30]} 12. a5 {[%emt 0:01:33]} bxa5 {[%emt 0:03:16]} 13. N2b3 {[%emt 0:02:19]} a4 {[%emt 0:09:07]} 14. Rxa4 {[%emt 0:03:36]} Nc5 {[%emt 0:01:31]} 15. Na5 $16 {[%emt 0:20:58]} Bxe4 {[%emt 0:18:36]} 16. Bxe4 {[%emt 0:17:35]} Ncxe4 {[%emt 0:00:06]} 17. Qf3 {[%emt 0:00:12]} d5 {[%emt 0:00:34]} 18. cxd5 {[%emt 0:00:05]} exd5 {[%emt 0:00:04]} 19. Nf5 {[%emt 0:01:37]} Qe5 {[%emt 0:11:08]} 20. Nc4 {[%emt 0:09:05]} Qc7 {[%emt 0:07:45]} 21. Nce3 {[%emt 0:02:25]} O-O-O {[%emt 0:03:00]} 22. Rxa6 {[%emt 0:16:11]} Bc5 {[%emt 0:12:25]} 23. Rd1 {[%emt 0:06:17]} Qb7 {[%emt 0:04:50]} 24. Ra1 {[%emt 0:02:43]} Ng5 {[%emt 0:02:58]} 25. Qg2 {[%emt 0:00:21]} d4 {[%emt 0:00:46]} 26. Qxb7+ {[%emt 0:00:27]} Kxb7 {[%emt 0:00:05]} 27. Nc4 {[%emt 0:00:05]} Ne6 {[%emt 0:00:32]} 28. b4 {[%emt 0:00:27]} Bb6 {[%emt 0:01:43]} 29. Nfd6+ {[%emt 0:00:15]} Kc7 {[%emt 0:02:06]} 30. Nxf7 {[%emt 0:00:06]} Ra8 {[%emt 0:00:08]} 31. Rxa8 {[%emt 0:01:59]} Rxa8 {[%emt 0:00:14]} 32. Nxb6 {[%emt 0:00:07]} Kxb6 {[%emt 0:00:05]} 33. Bb2 {[%emt 0:00:02]} Rf8 {[%emt 0:02:36]} 34. Ne5 {[%emt 0:00:48]} Rd8 {[%emt 0:00:15]} 35. Nf3 {[%emt 0:00:37]} d3 {[%emt 0:01:08]} 36. Bxf6 {[%emt 0:05:42]} gxf6 {[%emt 0:00:04]} 37. Ne1 {[%emt 0:00:07]} d2 {[%emt 0:02:57]} 38. Nf3 {[%emt 0:00:01]} Kb5 {[%emt 0:00:26]} 39. Rxd2 {[%emt 0:00:13]} Rxd2 40. Nxd2 {[%emt 0:00:03]} Kxb4 {[%emt 0:00:09]} 41. Ne4 {[%emt 0:00:36]} f5 {[%emt 0:00:04]} 42. Nf6 {[%emt 0:00:04]} h6 {[%emt 0:00:17]} 43. Ng8 {[%emt 0:00:07]} h5 {[%emt 0:13:12]} 44. Nf6 {[%emt 0:00:17]} Ng7 {[%emt 0:00:00]} 45. Kg2 {[%emt 0:00:10]} Kc5 {[%emt 0:00:00]} 46. Kf3 {[%emt 0:01:46]} Ne6 {[%emt 0:00:00]} 47. Nxh5 {[%emt 0:00:10]} Kd6 {[%emt 0:00:00]} 48. h4 {[%emt 0:00:32]} Ke5 {[%emt 0:00:00]} 49. Ke3 {[%emt 0:00:26]} Nf8 {[%emt 0:00:00]} 50. Nf4 {[%emt 0:02:02]} Kf6 {[%emt 0:00:00]} 51. Kd4 {[%emt 0:00:06]} Nd7 {[%emt 0:00:00]} 52. Kd5 {[%emt 0:00:11]} Nb6+ {[%emt 0:00:00]} 53. Kc5 {[%emt 0:00:08]} Nd7+ {[%emt 0:00:00]} 54. Kd6 {[%emt 0:00:05]} 1-0